bitfinex/quotes_SOLUSD_20260224
["timestamp","ask_amount","ask_price","bid_price","bid_amount"]
[1771924322394,0.78244979,77.009,76.99,0.85765217]
[1771924324397,0.78244979,77.009,76.991,12.98853112]
[1771924325104,0.78244979,77.009,76.991,13.84618329]
[1771924326296,0.78244979,77.009,76.992,0.85765217]
[1771924328394,0.78244979,77.009,76.994,0.85765217]
[1771924329487,0.78244979,77.018,76.994,0.85765217]
[1771924329690,5.2030242,77.01,76.994,0.85765217]
[1771924330502,0.78244979,77.009,76.994,0.85765217]
[1771924330808,0.78244979,77.009,76.995,13.84550852]
[1771924330992,0.78244979,77.009,76.996,0.85765217]
[1771924331505,5.2030242,77.01,76.996,0.85765217]
[1771924334103,5.2030242,77.01,76.998,0.85765217]
[1771924334797,5.4030242,77.04,76.997,12.98751899]
[1771924335002,0.78244979,77.032,77.001,0.85765217]
[1771924335406,0.78244979,77.032,77.01,5.2030242]
[1771924335603,0.78244979,77.037,77.011,0.85765217]
[1771924335994,0.78244979,77.029,77.011,0.85765217]
[1771924336419,0.78244979,77.029,77.013,0.85765217]
[1771924336992,0.78244979,77.039,77.013,0.85765217]
[1771924338318,0.78244979,77.039,77.015,0.85765217]
[1771924340512,0.78244979,77.037,77.015,0.85765217]
[1771924340699,0.78244979,77.037,77.016,12.98431494]
[1771924340898,0.78244979,77.037,77.017,0.85765217]
[1771924341413,0.2,77.04,77.02,5.2030242]
[1771924341613,0.2,77.04,77.021,0.85765217]
[1771924343622,0.8484879,77.039,77.022,13.80742615]
[1771924344621,0.8484879,77.039,77.022,12.98330347]
[1771924346118,0.8484879,77.039,77.022,0.8283889]
[1771924346324,0.2,77.04,77.022,0.8283889]
[1771924347319,0.78207546,77.039,77.022,0.8283889]
[1771924347518,0.2,77.04,77.022,0.8283889]
[1771924348596,0.2,77.04,77.023,12.9831349]
[1771924348797,0.2,77.04,77.024,0.8283889]
[1771924350215,0.78207546,77.039,77.024,0.8283889]
[1771924351731,0.78207546,77.039,77.025,12.98279779]
[1771924355015,0.78207546,77.039,77.025,13.81118669]
[1771924355196,0.2,77.04,77.026,0.8283889]
[1771924357102,0.98207546,77.04,77.026,0.8283889]
[1771924357410,0.78207546,77.039,77.027,12.98246069]
[1771924360319,0.78207546,77.039,77.027,0.8283889]
[1771924361703,0.78207546,77.039,77.021,12.98347204]
[1771924361910,0.78207546,77.039,77.022,0.8283889]
[1771924362515,0.78207546,77.039,77.016,32.46078736]
[1771924362516,0.78207546,77.039,77.023,12.9831349]
[1771924362706,0.78207546,77.039,77.024,0.8283889]
[1771924363220,0.78207546,77.044,77.025,0.8283889]
[1771924363519,0.2,77.05,77.031,0.8283889]
[1771924364525,0.98207546,77.05,77.031,0.8283889]
[1771924365626,0.78207546,77.039,77.011,0.8283889]
[1771924367526,0.78207546,77.037,77.012,12.98498935]
[1771924368229,0.78207546,77.037,77.012,0.8283889]
[1771924369337,0.78207546,77.037,77.013,12.98482074]
[1771924369537,0.78207546,77.035,77.013,12.98482074]
[1771924369823,0.78207546,77.029,77.013,12.98482074]
[1771924370946,0.78207546,77.019,77.001,13.81523322]
[1771924372941,0.78207546,77.019,77.002,0.8283889]
[1771924375160,0.78207546,77.019,77.003,12.98650701]
[1771924375350,0.78207546,77.019,77.003,13.77154471]
[1771924375634,0.78207546,77.019,77.004,0.7850377]
[1771924379030,0.78207546,77.019,77.005,12.98616972]
[1771924381237,0.78207546,77.019,77.006,0.7850377]
[1771924381535,0.81443887,77.028,77.006,0.7850377]
[1771924389835,12.98246069,77.027,77.006,0.7850377]
[1771924390044,0.81443887,77.026,77.006,0.7850377]
[1771924390534,0.81443887,77.019,77.005,12.98616972]
[1771924390842,12.98246069,77.027,76.984,0.7850377]
[1771924390843,0.81443887,77.009,76.984,0.7850377]
[1771924391139,0.81443887,76.999,76.984,0.7850377]
[1771924393543,0.81443887,76.999,76.985,12.98954341]
[1771924393918,0.81443887,76.999,76.977,32.47716545]
[1771924394124,0.81443887,76.999,76.985,0.7850377]
[1771924395419,0.81443887,76.999,76.981,0.7850377]
[1771924396122,0.81443887,76.999,76.983,12.98984636]
[1771924398038,0.81443887,76.989,76.973,0.7850377]
[1771924398247,0.81443887,76.989,76.969,0.7850377]
[1771924399530,0.81443887,76.989,76.971,0.7850377]
[1771924401544,0.81443887,76.989,76.972,12.99173725]
[1771924401847,0.81443887,76.989,76.973,0.7850377]
[1771924403033,0.81443887,76.989,76.972,12.99173725]
[1771924405948,0.81443887,76.989,76.968,0.7850377]
[1771924405949,0.81443887,76.989,76.97,5.18538148]
[1771924408350,0.81443887,76.989,76.969,12.99224363]
[1771924413663,0.81443887,76.989,76.969,0.80648507]
[1771924415255,0.81443887,76.989,76.97,12.99207483]
[1771924415431,0.81443887,76.989,76.97,13.7985599]
[1771924418959,0.81443887,76.989,76.971,0.80648507]
[1771924422064,0.81443887,76.989,76.972,12.99173725]
[1771924424468,5.19245743,76.98,76.949,0.80648507]
[1771924424769,0.79219747,76.969,76.949,0.80648507]
[1771924426566,0.79219747,76.969,76.952,0.80648507]
[1771924429263,0.79219747,76.969,76.953,13.80143003]
[1771924429562,0.79219747,76.969,76.953,12.99494496]
[1771924431066,32.46766945,77.0,76.954,0.80648507]
[1771924431271,0.79219747,76.989,76.961,0.80648507]
[1771924433267,0.79219747,76.987,76.962,13.79991039]
[1771924433876,0.79219747,77.003,76.971,0.80648507]
[1771924434084,0.79219747,77.011,76.981,0.80648507]
[1771924434254,0.79219747,77.011,76.991,0.80648507]
[1771924434875,0.85078668,77.032,77.001,0.77596444]
[1771924435048,0.85078668,77.029,77.01,1.05e-06]
[1771924435576,5.19245743,77.04,76.962,214.39151786]
[1771924435577,0.85078668,77.027,77.0,1.03e-06]
[1771924437188,0.85078668,77.027,77.001,0.77596444]
[1771924438777,0.85078668,77.027,77.003,0.77596444]
[1771924438992,0.85078668,77.026,77.002,12.98667567]
[1771924440793,0.85078668,77.026,77.003,0.77596444]
[1771924440994,0.85078668,77.026,77.002,12.98667567]
[1771924443672,0.85078668,77.024,77.002,12.98667567]
[1771924449476,0.85078668,77.009,76.981,0.77596444]
[1771924450576,0.85078668,77.008,76.983,0.77596444]
[1771924451092,0.85078668,77.018,76.991,0.77596444]
[1771924452980,0.85078668,77.018,76.993,0.77596444]
[1771924454372,0.85078668,77.016,76.993,0.77596444]
[1771924456497,0.85078668,77.016,76.995,0.77596444]
[1771924460172,0.85078668,77.016,76.996,12.98768767]
[1771924460693,0.85078668,77.024,76.997,0.77596444]
[1771924460895,0.85078668,77.024,77.001,0.77596444]
[1771924461381,0.85078668,77.019,76.996,13.76365211]
[1771924461784,0.85078668,77.019,76.997,0.77596444]
[1771924462589,0.85078668,77.017,76.992,0.77596444]
[1771924466001,0.85078668,77.017,76.993,12.98819373]
[1771924466188,0.85078668,77.017,76.993,13.81525609]
[1771924467178,0.85078668,77.017,76.994,0.82706236]
[1771924471006,0.85078668,77.017,76.996,0.82706236]
[1771924475806,0.85078668,77.017,76.998,0.82706236]
[1771924476012,0.85078668,77.017,76.997,12.98751899]
[1771924476013,12.98215339,77.029,77.001,0.82706236]
[1771924477407,0.86585422,77.03,77.003,0.82706236]
[1771924479094,12.98212361,77.029,77.003,0.82706236]
[1771924479411,0.86585422,77.03,77.005,0.82706236]
[1771924479609,0.86585422,77.03,77.004,45.4521843]
[1771924479610,0.86585422,77.03,77.011,0.82706236]
[1771924481512,0.86585422,77.03,77.013,0.82706236]
[1771924482716,0.86585422,77.03,77.015,0.82706236]
[1771924483014,0.86585422,77.03,77.014,12.98465214]
[1771924483398,0.86585422,77.03,77.015,0.82706236]
[1771924484220,12.97979491,77.043,77.015,0.82706236]
[1771924484414,0.86585422,77.058,77.016,0.28432314]
[1771924484618,0.86585422,77.058,77.031,0.82706236]
[1771924484813,0.86585422,77.058,77.033,0.82706236]
[1771924486623,0.86585422,77.069,77.041,0.82706236]
[1771924487113,0.86585422,77.069,77.043,0.82706236]
[1771924492321,0.86585422,77.069,77.045,0.82706236]
[1771924494207,0.86585422,77.067,77.045,0.82706236]
[1771924500235,0.86585422,77.067,77.047,0.8304612]
[1771924501334,1.04118565,77.1,77.061,0.8304612]
[1771924501516,1.04118565,77.1,77.081,0.8304612]
[1771924502521,0.84118565,77.089,77.054,0.8304612]
[1771924502715,0.84118565,77.079,77.054,13.80824248]
[1771924502939,0.84118565,77.079,77.055,0.8304612]
[1771924504020,0.84118565,77.077,77.056,13.80803595]
[1771924504225,0.84118565,77.077,77.057,0.8304612]
[1771924506341,12.97420727,77.076,77.057,0.8304612]
[1771924506642,0.84118565,77.075,77.057,0.8304612]
[1771924507442,0.84118565,77.073,77.053,0.8304612]
[1771924508532,0.84118565,77.073,77.045,0.8304612]
[1771924508846,0.84118565,77.069,77.042,0.8304612]
[1771924511241,0.84118565,77.067,77.044,0.8304612]
[1771924513348,0.84118565,77.065,77.033,0.8304612]
[1771924513528,0.84118565,77.059,77.033,0.8304612]
[1771924513844,0.84118565,77.059,77.034,0.8304612]
[1771924514023,0.84118565,77.049,77.013,32.46195004]
[1771924514222,0.84118565,77.049,77.014,12.98465214]
[1771924514751,0.84118565,77.049,77.02,5.18676043]
[1771924514927,0.84118565,77.049,77.014,45.44628249]
[1771924516146,0.84118565,77.047,77.017,0.8304612]
[1771924516342,0.84118565,77.047,76.984,51.95824694]
[1771924516343,0.84118565,77.039,77.012,12.984827]
[1771924516654,0.84118565,77.029,77.008,13.81609409]
[1771924516940,0.84118565,77.029,77.002,0.8304612]
[1771924517147,0.84118565,77.019,76.997,0.8304612]
[1771924517338,0.84118565,77.019,76.992,0.8304612]
[1771924517653,0.84118565,77.009,76.992,0.8304612]
[1771924519349,0.84118565,77.009,76.993,12.98819373]
[1771924520146,0.84118565,77.009,76.992,0.8304612]
[1771924520349,0.84118565,77.008,76.989,0.8304612]
[1771924520556,0.84118565,77.008,76.984,0.8304612]
[1771924522354,0.84118565,77.008,76.986,0.8304612]
[1771924525280,0.82200808,76.999,76.972,12.99173725]
[1771924525439,6.00876851,76.99,76.973,0.85623701]
[1771924525750,6.00876851,76.99,76.965,12.99284272]
[1771924525751,0.82200808,76.989,76.965,12.99284272]
[1771924525953,0.82200808,76.989,76.966,0.85623701]
[1771924528550,0.82200808,76.988,76.966,13.84898705]
[1771924529260,0.82200808,76.988,76.962,12.99328831]
[1771924530066,0.82200808,76.979,76.96,0.1]
[1771924530243,0.82200808,76.969,76.946,0.85623701]
[1771924530442,0.82200808,76.969,76.948,0.85623701]
[1771924530642,5.18676043,76.97,76.948,0.85623701]
[1771924531345,0.82200808,76.969,76.948,0.85623701]
[1771924531952,5.18676043,76.96,76.943,0.85623701]
[1771924532158,5.18676043,76.96,76.933,32.49546695]
[1771924532159,0.82200808,76.959,76.938,0.85623701]
[1771924532556,0.82200808,76.959,76.939,13.85354656]
[1771924532791,0.82200808,76.959,76.94,0.85623701]
[1771924534665,0.82200808,76.959,76.941,12.9969717]
[1771924535561,0.82200808,76.958,76.932,0.85623701]
[1771924537267,0.82200808,76.958,76.934,0.85623701]
[1771924538667,0.82200808,76.956,76.934,0.85623701]
[1771924538968,0.82200808,76.949,76.934,0.85623701]
[1771924539150,0.82200808,76.949,76.93,0.95623701]
[1771924539350,0.82200808,76.949,76.931,12.99866113]
[1771924541161,5.19787492,76.97,76.932,0.85623701]
[1771924541969,5.19787492,76.96,76.934,0.85623701]
[1771924543067,12.99393183,76.959,76.935,12.99798531]
[1771924543269,12.99393183,76.959,76.936,0.85623701]
[1771924544378,0.82200808,76.958,76.936,0.85623701]
[1771924546670,0.82200808,76.956,76.936,0.85623701]
[1771924546867,12.99426952,76.957,76.93,5.29787492]
[1771924546868,0.82200808,76.949,76.93,0.1]
[1771924547802,12.99426952,76.957,76.932,0.85623701]
[1771924548554,32.48046594,76.97,76.941,0.85623701]
[1771924548753,0.82200808,76.979,76.951,0.85623701]
[1771924549952,12.98920596,76.987,76.961,0.85623701]
[1771924550863,12.98920596,76.987,76.963,0.85623701]
[1771924551462,0.82200808,76.969,76.946,0.85623701]
[1771924551760,0.82200808,76.959,76.932,0.85623701]
[1771924552477,0.82200808,76.969,76.932,0.85623701]
[1771924553183,0.82200808,76.969,76.933,45.49413125]
[1771924553374,12.99241243,76.968,76.941,0.85623701]
[1771924554077,13.81442051,76.968,76.941,0.85623701]
[1771924556886,13.81442051,76.968,76.942,12.99680278]
[1771924557178,13.81442051,76.968,76.943,0.82779407]
[1771924557761,0.79161794,76.967,76.943,0.82779407]
[1771924559262,0.79161794,76.965,76.943,0.82779407]
[1771924559882,0.79161794,76.965,76.937,0.82779407]
[1771924560086,0.79161794,76.959,76.932,0.82779407]
[1771924562087,5.19787492,76.95,76.932,0.82779407]
[1771924562663,0.79161794,76.949,76.93,0.1]
[1771924562979,45.47935236,76.958,76.93,0.1]
[1771924562980,5.19787492,76.94,76.93,0.1]
[1771924563380,0.79161794,76.939,76.92,0.1]
[1771924563582,0.79161794,76.929,76.91,0.1]
[1771924563764,0.79161794,76.919,76.891,13.00530587]
[1771924564274,0.79161794,76.917,76.891,13.00530587]
[1771924564780,13.00085805,76.918,76.893,13.00508498]
[1771924564978,0.79161794,76.929,76.893,45.51779745]
[1771924565364,0.79161794,76.929,76.901,0.82779407]
[1771924565984,12.99932128,76.928,76.903,0.82779407]
[1771924568567,13.79093922,76.928,76.903,0.82779407]
[1771924568770,0.79161794,76.941,76.905,0.82779407]
[1771924569087,18.98663348,76.94,76.905,0.82779407]
[1771924569382,0.79161794,76.939,76.905,0.82779407]
[1771924569986,5.19787492,76.93,76.905,0.82779407]
[1771924570688,0.79161794,76.929,76.905,0.82779407]
[1771924571085,45.48999219,76.94,76.9,0.1]
[1771924571086,0.79161794,76.919,76.9,0.1]
[1771924572195,0.79161794,76.919,76.89,0.1]
[1771924572374,0.79161794,76.909,76.89,0.1]
[1771924572891,0.79161794,76.909,76.892,7.31741267]
[1771924573393,0.79161794,76.914,76.893,0.82779407]
[1771924574487,13.00179934,76.913,76.893,0.82779407]
[1771924575079,0.79161794,76.909,76.892,6.4896186]
[1771924575284,0.79161794,76.899,76.88,0.1]
[1771924575593,0.79161794,76.889,76.88,0.1]
[1771924575983,5.19787492,76.9,76.881,0.82779407]
[1771924576188,0.79161794,76.905,76.881,0.82779407]
[1771924576397,13.00242778,76.909,76.881,0.82779407]
[1771924577284,0.79161794,76.908,76.881,0.82779407]
[1771924577591,0.79161794,76.906,76.881,0.82779407]
[1771924579393,0.33843419,76.896,76.881,0.82779407]
[1771924579591,13.79321689,76.914,76.882,13.0069457]
[1771924579797,5.98949286,76.92,76.891,0.82779407]
[1771924579994,0.79161794,76.927,76.891,0.82779407]
[1771924580478,0.79161794,76.927,76.901,0.82779407]
[1771924581492,18.19675849,76.93,76.903,0.82779407]
[1771924581793,18.98837643,76.93,76.903,0.82779407]
[1771924582290,0.79161794,76.939,76.911,0.82779407]
[1771924582483,5.19787492,76.93,76.902,45.51247041]
[1771924582690,0.79161794,76.929,76.903,0.82779407]
[1771924583375,0.79161794,76.929,76.904,13.00322479]
[1771924583578,0.79161794,76.929,76.905,0.8250883]
[1771924584179,0.85166791,76.927,76.904,13.00322479]
[1771924584981,0.85166791,76.927,76.904,13.80222803]
[1771924585790,0.79551393,76.919,76.893,32.51257363]
[1771924586582,0.79551393,76.919,76.894,0.79900324]
[1771924588901,0.79551393,76.919,76.896,0.79900324]
[1771924589800,0.79551393,76.919,76.893,31.3163236]
[1771924590592,0.79551393,76.919,76.89,5.19787492]
[1771924591306,0.79551393,76.939,76.9,5.19787492]
[1771924591493,0.79551393,76.937,76.9,5.19787492]
[1771924591805,0.79551393,76.929,76.901,0.50416036]
[1771924594905,0.79551393,76.929,76.903,0.50689056]
[1771924595905,0.79551393,76.929,76.904,13.00322479]
[1771924598011,0.79551393,76.927,76.901,13.00373207]
[1771924598696,0.79551393,76.927,76.902,0.50951728]
[1771924600102,0.79551393,76.927,76.91,5.20098989]
[1771924600298,5.20098989,76.94,76.911,0.51120677]
[1771924600299,0.79551393,76.933,76.911,0.51120677]
[1771924600498,0.79551393,76.937,76.911,0.51120677]
[1771924601109,0.79551393,76.943,76.92,5.71304824]
[1771924601414,0.79551393,76.943,76.921,0.51205835]
[1771924604210,0.79551393,76.943,76.922,0.51452605]
[1771924606614,0.79551393,76.942,76.931,0.2]
[1771924606920,0.79551393,76.947,76.931,0.2]
[1771924608220,0.79551393,76.946,76.931,0.2]
[1771924611522,0.79551393,76.953,76.932,0.51991463]
[1771924611727,0.79551393,76.958,76.932,0.51991463]
[1771924612521,13.78978314,76.958,76.933,0.52063575]
[1771924612709,0.79551393,76.957,76.935,0.52137501]
[1771924614325,0.79551393,76.949,76.915,0.52208002]
[1771924614513,0.79551393,76.939,76.922,13.000182]
[1771924621822,0.79551393,76.939,76.922,13.52835575]
[1771924622731,0.8480815,76.949,76.925,0.52881249]
[1771924624831,12.9955818,76.95,76.925,0.52881249]
[1771924624832,0.8480815,76.947,76.925,0.52881249]
[1771924629935,0.8480815,76.929,76.891,0.83809742]
[1771924631030,0.8480815,76.929,76.89,5.20098989]
[1771924631031,0.8480815,76.927,76.893,0.83809742]
[1771924634761,0.8480815,76.909,76.88,0.1]
[1771924635041,0.8480815,76.899,76.882,0.83809742]
[1771924635631,0.8480815,76.915,76.891,0.83809742]
[1771924638861,0.8480815,76.914,76.891,13.84342464]
[1771924639954,0.8480815,76.912,76.886,0.83809742]
[1771924640137,0.8480815,76.909,76.881,0.83809742]
[1771924640521,45.50596127,76.913,76.88,0.1]
[1771924640522,0.8480815,76.899,76.88,0.1]
[1771924640722,0.8480815,76.899,76.881,13.00711489]
[1771924641835,0.8480815,76.899,76.88,0.1]
[1771924642230,5.20098989,76.89,76.88,0.1]
[1771924642440,0.8480815,76.889,76.864,0.83809742]
[1771924642633,0.8480815,76.889,76.862,0.83809742]
[1771924643843,13.8899817,76.898,76.871,0.80587189]
[1771924644041,3.69383402,76.91,76.871,0.80587189]
[1771924644042,0.88574232,76.903,76.871,0.80587189]
[1771924644256,0.88574232,76.903,76.882,0.80587189]
[1771924646348,0.88574232,76.903,76.883,13.83286287]
[1771924647557,0.88574232,76.903,76.884,0.82608634]
[1771924648246,13.00283126,76.907,76.885,13.00643818]
[1771924648446,0.86665993,76.919,76.891,0.82608634]
[1771924648653,5.20098989,76.92,76.891,0.82608634]
[1771924648654,0.86665993,76.917,76.891,0.82608634]
[1771924649961,6.06764982,76.91,76.891,0.82608634]
[1771924650462,6.06764982,76.91,76.892,13.00525412]
[1771924650663,0.86665993,76.909,76.888,13.00589977]
[1771924653258,0.86665993,76.909,76.888,13.83198611]
[1771924653450,0.86665993,76.909,76.889,0.82608634]
[1771924656047,0.86665993,76.909,76.88,5.20098989]
[1771924656251,0.86665993,76.909,76.874,13.83438563]
[1771924656562,0.86665993,76.909,76.875,0.82608634]
[1771924659268,0.86665993,76.907,76.877,0.82608634]
[1771924662168,0.86665993,76.905,76.879,0.82608634]
[1771924662768,5.20482849,76.9,76.874,0.82608634]
[1771924662954,0.86665993,76.899,76.874,0.82608634]
[1771924664368,0.86665993,76.897,76.874,0.82608634]
[1771924665167,0.86665993,76.903,76.876,0.82608634]
[1771924666552,0.86665993,76.903,76.878,0.82608634]
[1771924666754,0.86665993,76.905,76.881,0.82608634]
[1771924666972,0.86665993,76.909,76.881,0.82608634]
[1771924669972,0.86665993,76.907,76.876,0.82608634]
[1771924670276,0.86665993,76.907,76.881,0.82608634]
[1771924671569,0.86665993,76.907,76.883,0.82608634]
[1771924676279,0.86665993,76.907,76.885,0.90854918]
[1771924678085,13.87185803,76.906,76.885,0.90854918]
[1771924678390,0.86897139,76.905,76.885,0.90854918]
[1771924680571,0.86897139,76.904,76.885,0.90854918]
[1771924681188,0.86897139,76.922,76.891,0.90854918]
[1771924681374,0.86897139,76.922,76.901,0.90854918]
[1771924681965,5.20482849,76.94,76.911,0.90854918]
[1771924682169,51.95863185,76.985,76.921,0.90854918]
[1771924682170,12.99562047,76.949,76.921,0.90854918]
[1771924682988,12.99562047,76.949,76.922,13.000182]
[1771924683284,12.99562047,76.949,76.923,0.90854918]
[1771924684083,5.20482849,76.95,76.923,0.90854918]
[1771924684084,13.86443347,76.95,76.923,0.90854918]
[1771924684395,0.86897139,76.949,76.923,0.90854918]
[1771924686386,18.20029057,76.95,76.92,5.20482849]
[1771924686387,0.86897139,76.947,76.925,0.90854918]
[1771924686883,0.86897139,76.939,76.906,0.90854918]
[1771924687191,0.86897139,76.929,76.9,0.90854918]
[1771924687388,0.86897139,76.919,76.893,0.90854918]
[1771924687592,0.86897139,76.919,76.886,0.90854918]
[1771924688290,0.86897139,76.917,76.888,0.90854918]
[1771924688692,0.86897139,76.917,76.891,0.90854918]
[1771924689973,5.20482849,76.91,76.881,32.51778722]
[1771924690175,5.20482849,76.91,76.784,163.8]
[1771924690176,13.0059307,76.888,76.861,0.90854918]
[1771924690382,0.86897139,76.887,76.855,0.90854918]
[1771924690582,0.86897139,76.879,76.855,0.90854918]
[1771924691995,5.20482849,76.88,76.855,0.90854918]
[1771924692487,0.86897139,76.885,76.856,13.01134589]
[1771924692671,0.86897139,76.885,76.857,0.90854918]
[1771924693381,5.20482849,76.88,76.857,0.90854918]
[1771924693583,6.07379988,76.88,76.857,0.90854918]
[1771924693778,5.73039472,76.88,76.857,0.90854918]
[1771924693980,0.86897139,76.88,76.857,0.90854918]
[1771924696180,0.86897139,76.88,76.859,0.90854918]
[1771924696495,0.86897139,76.899,76.861,0.90854918]
[1771924697399,0.86897139,76.889,76.861,0.90854918]
[1771924702196,3.69383402,76.91,76.84,5.20482849]
[1771924702197,0.86897139,76.901,76.871,0.90854918]
[1771924702495,0.86897139,76.9,76.881,0.90854918]
[1771924703899,0.86897139,76.9,76.876,0.87112372]
[1771924705595,0.85391389,76.905,76.878,0.8534319]
[1771924705893,0.85391389,76.905,76.877,13.00779166]
[1771924705894,13.00264033,76.908,76.881,0.8534319]
[1771924706092,0.85391389,76.907,76.881,0.8534319]
[1771924708192,0.85391389,76.907,76.883,0.8534319]
[1771924709800,0.85391389,76.905,76.883,0.8534319]
[1771924710497,13.00322479,76.904,76.883,0.8534319]
[1771924710703,0.85391389,76.899,76.873,0.8534319]
[1771924712698,0.85391389,76.897,76.873,0.8534319]
[1771924714606,0.85391389,76.895,76.873,0.8534319]
[1771924716914,0.85391389,76.893,76.869,0.8534319]
[1771924717111,0.85391389,76.893,76.862,0.8534319]
[1771924718312,0.85391389,76.889,76.862,0.8534319]
[1771924719101,0.85391389,76.887,76.858,13.01098393]
[1771924720918,0.85391389,76.887,76.861,0.8534319]
[1771924721118,0.85391389,76.887,76.863,0.8534319]
[1771924721819,13.86002116,76.887,76.863,0.8534319]
[1771924722216,13.00610727,76.887,76.863,0.8534319]
[1771924722820,13.86002116,76.887,76.863,0.8534319]
[1771924723309,0.85391389,76.886,76.863,0.8534319]
[1771924723517,0.85391389,76.886,76.865,0.8534319]
[1771924727025,13.86035207,76.885,76.865,0.8534319]
[1771924728526,0.85391389,76.884,76.865,0.8534319]
[1771924728915,0.85391389,76.884,76.856,0.8534319]
[1771924729710,0.85391389,76.89,76.861,0.8534319]
[1771924731532,45.51424595,76.899,76.863,0.8534319]
[1771924731533,13.85967544,76.889,76.863,0.8534319]
[1771924731827,0.85391389,76.888,76.863,0.8534319]
[1771924738235,0.85391389,76.888,76.865,0.87320579]
[1771924739349,0.87107154,76.886,76.865,0.87320579]
[1771924740443,0.87107154,76.884,76.865,0.87320579]
[1771924744048,5.20766448,76.89,76.86,5.20766448]
[1771924744049,13.87703775,76.888,76.867,0.87320579]
[1771924744347,0.87107154,76.887,76.867,0.87320579]
[1771924744950,6.07873602,76.89,76.867,0.87320579]
[1771924745138,0.87107154,76.899,76.871,0.87320579]
[1771924748156,13.00264558,76.908,76.881,0.87320579]
[1771924748365,0.87107154,76.907,76.881,0.87320579]
[1771924750556,0.87107154,76.911,76.891,0.87320579]
[1771924750757,0.87107154,76.909,76.886,0.87320579]
[1771924751855,0.87107154,76.907,76.882,13.0069457]
[1771924752449,0.87107154,76.889,76.867,0.87320579]
[1771924752951,0.87107154,76.889,76.863,13.01016093]
[1771924753148,0.87107154,76.889,76.863,13.88336672]
[1771924753959,0.87107154,76.887,76.863,13.88336672]
[1771924754950,0.87107154,76.887,76.858,0.87320579]
[1771924757666,0.87107154,76.885,76.853,13.88496229]
[1771924757866,0.87107154,76.885,76.854,0.87320579]
[1771924759973,0.87107154,76.883,76.856,0.87320579]
[1771924764669,0.83231954,76.881,76.856,0.87320579]
[1771924765268,0.83231954,76.881,76.858,0.87913902]
[1771924768374,0.87601965,76.879,76.858,0.87913902]
[1771924770456,13.00762246,76.878,76.858,0.87913902]
[1771924770672,0.87601965,76.877,76.858,0.87913902]
[1771924771876,0.87601965,76.877,76.86,0.87913902]
[1771924772570,0.87601965,76.877,76.842,32.53422849]
[1771924772778,0.87601965,76.875,76.852,0.87913902]
[1771924774166,0.87601965,76.879,76.852,0.87913902]
[1771924776565,0.87601965,76.879,76.854,0.87913902]
[1771924777668,0.87601965,76.877,76.854,0.87913902]
[1771924778469,0.87601965,76.877,76.813,3.69383402]
[1771924778669,0.87601965,76.844,76.821,13.89641294]
[1771924778866,0.87601965,76.871,76.831,0.87913902]
[1771924779068,0.87601965,76.869,76.841,0.87913902]
[1771924780767,13.00931466,76.868,76.843,0.87913902]
[1771924780984,0.87601965,76.867,76.843,0.87913902]
[1771924781869,0.87601965,76.873,76.851,0.87913902]
[1771924782685,0.87601965,76.873,76.852,0.87913902]
[1771924783687,0.87601965,76.872,76.847,0.87913902]
[1771924784270,0.87601965,76.872,76.851,0.87913902]
[1771924785587,0.87601965,76.871,76.851,0.87913902]
[1771924787094,0.87601965,76.871,76.846,0.87913902]
[1771924788490,13.00897619,76.87,76.846,0.87913902]
[1771924788678,0.87601965,76.869,76.846,0.87913902]
[1771924789393,0.87601965,76.859,76.822,0.87913902]
[1771924789696,0.87601965,76.849,76.822,0.87913902]
[1771924790597,0.87601965,76.847,76.822,0.87913902]
[1771924791191,0.87601965,76.839,76.82,0.1]
[1771924791571,45.54445137,76.848,76.81,0.1]
[1771924791572,0.87601965,76.829,76.81,0.1]
[1771924791872,0.87601965,76.829,76.81,0.97913902]
[1771924793383,13.01608788,76.828,76.81,0.97913902]
[1771924794789,0.87601965,76.837,76.811,0.87913902]
[1771924795512,0.87601965,76.837,76.812,0.91347133]
[1771924796072,0.85043925,76.843,76.812,0.91347133]
[1771924798397,3.69383402,76.837,76.8,0.1]
[1771924798585,5.2088274,76.82,76.8,0.1]
[1771924798790,5.2088274,76.83,76.8,1.01719531]
[1771924799496,45.54800759,76.842,76.802,0.91719531]
[1771924799701,13.01371645,76.842,76.821,0.91719531]
[1771924800402,13.01253106,76.849,76.823,0.91719531]
[1771924800604,57.38887162,76.882,76.823,0.91719531]
[1771924800605,13.01170324,76.854,76.823,0.91719531]
[1771924800809,13.01170324,76.854,76.831,0.91719531]
[1771924802402,13.01114679,76.858,76.832,13.01541024]
[1771924802607,13.00914542,76.869,76.801,13.30498693]
[1771924802813,13.00914542,76.869,76.828,0.91719531]
[1771924802814,5.2088274,76.86,76.828,0.91719531]
[1771924802992,0.14216157,76.859,76.802,0.91719531]
[1771924803193,13.00914542,76.869,76.821,0.91719531]
[1771924803399,5.2088274,76.86,76.821,0.91719531]
[1771924803890,5.2088274,76.85,76.821,0.91719531]
[1771924804208,5.2088274,76.84,76.815,0.91719531]
[1771924804790,5.2088274,76.85,76.816,13.01812122]
[1771924804986,45.53497085,76.864,76.821,0.91719531]
[1771924804987,5.2088274,76.86,76.821,0.91719531]
[1771924805390,5.2088274,76.85,76.821,0.91719531]